[Event "Live Chess"]
[Site "Chess.com"]
[Date "2023.05.21"]
[Round "-"]
[White "KeithArkell"]
[Black "Doge_Dandolo"]
[Result "1-0"]
[WhiteElo "2570"]
[BlackElo "1908"]
[TimeControl "300"]
[EndTime "20:26:53 PDT"]
[Termination "KeithArkell won by checkmate"]

1. d4 {[%clk 0:04:57.1]} 1... Nf6 {[%clk 0:04:55.1]} 2. Nf3 {[%clk 0:04:52.6]}
2... c5 {[%clk 0:04:51.4]} 3. d5 {[%clk 0:04:51.5]} 3... g6 {[%clk 0:04:46.5]}
4. Nc3 {[%clk 0:04:50.5]} 4... d6 {[%clk 0:04:45]} 5. e4 {[%clk 0:04:49.3]} 5...
Bg7 {[%clk 0:04:44.2]} 6. Bb5+ {[%clk 0:04:48.9]} 6... Bd7 {[%clk 0:04:42]} 7.
a4 {[%clk 0:04:48.6]} 7... O-O {[%clk 0:04:40]} 8. h3 {[%clk 0:04:48.1]} 8... a6
{[%clk 0:04:38.2]} 9. Bc4 {[%clk 0:04:47.6]} 9... Re8 {[%clk 0:04:27.1]} 10. O-O
{[%clk 0:04:45.8]} 10... Qc7 {[%clk 0:04:24]} 11. Re1 {[%clk 0:04:39.7]} 11...
e6 {[%clk 0:04:21.9]} 12. dxe6 {[%clk 0:04:37]} 12... Bxe6 {[%clk 0:04:19.9]}
13. Bxe6 {[%clk 0:04:36.1]} 13... Rxe6 {[%clk 0:04:18.7]} 14. Bf4 {[%clk
0:04:35.1]} 14... Nc6 {[%clk 0:04:15.6]} 15. Nd5 {[%clk 0:04:30]} 15... Nxd5
{[%clk 0:04:06.6]} 16. Qxd5 {[%clk 0:04:25.5]} 16... Rae8 {[%clk 0:04:01.6]} 17.
c3 {[%clk 0:04:23.1]} 17... b6 {[%clk 0:03:48.8]} 18. Rad1 {[%clk 0:04:19.9]}
18... Ne5 {[%clk 0:03:46.4]} 19. Bxe5 {[%clk 0:04:17.6]} 19... Bxe5 {[%clk
0:03:43.7]} 20. Nxe5 {[%clk 0:04:16.2]} 20... Rxe5 {[%clk 0:03:42.3]} 21. Qxd6
{[%clk 0:04:14.8]} 21... Qxd6 {[%clk 0:03:34.6]} 22. Rxd6 {[%clk 0:04:12.9]}
22... Rxe4 {[%clk 0:03:33.6]} 23. Rxe4 {[%clk 0:04:11.9]} 23... Rxe4 {[%clk
0:03:32.2]} 24. Rxb6 {[%clk 0:04:10]} 24... Rxa4 {[%clk 0:03:31.1]} 25. g4
{[%clk 0:04:05]} 25... Kf8 {[%clk 0:03:27.1]} 26. Kg2 {[%clk 0:04:02.7]} 26...
Ke7 {[%clk 0:03:25.4]} 27. g5 {[%clk 0:04:02.1]} 27... Ra2 {[%clk 0:03:07.1]}
28. Kg3 {[%clk 0:03:59]} 28... Ra4 {[%clk 0:03:05.1]} 29. h4 {[%clk 0:03:51.7]}
29... Ra2 {[%clk 0:03:01.8]} 30. f3 {[%clk 0:03:50.6]} 30... Ra4 {[%clk
0:03:00.5]} 31. Kh3 {[%clk 0:03:46.7]} 31... Kf8 {[%clk 0:02:56]} 32. Kg2 {[%clk
0:03:44.8]} 32... Kg7 {[%clk 0:02:54.9]} 33. Kg3 {[%clk 0:03:43.9]} 33... h6
{[%clk 0:02:53.5]} 34. Rb8 {[%clk 0:03:42.3]} 34... hxg5 {[%clk 0:02:51]} 35.
hxg5 {[%clk 0:03:42.2]} 35... Ra2 {[%clk 0:02:46.2]} 36. Kf4 {[%clk 0:03:41.1]}
36... Ra4+ {[%clk 0:02:44.7]} 37. Ke5 {[%clk 0:03:40.1]} 37... Rh4 {[%clk
0:02:39.5]} 38. Rb6 {[%clk 0:03:31.2]} 38... Ra4 {[%clk 0:02:35]} 39. f4 {[%clk
0:03:23.9]} 39... Rc4 {[%clk 0:02:24.9]} 40. Rxa6 {[%clk 0:03:20.9]} 40... Kg8
{[%clk 0:02:14.2]} 41. Ra7 {[%clk 0:03:19.2]} 41... Kg7 {[%clk 0:02:12.9]} 42.
Ra8 {[%clk 0:03:18.4]} 42... Kh7 {[%clk 0:02:09.4]} 43. f5 {[%clk 0:03:17.3]}
43... gxf5 {[%clk 0:02:07.7]} 44. Kf6 {[%clk 0:03:16.3]} 44... f4 {[%clk
0:02:03.9]} 45. Kxf7 {[%clk 0:03:14.2]} 45... f3 {[%clk 0:02:00.3]} 46. g6+
{[%clk 0:03:13.6]} 46... Kh6 {[%clk 0:01:59.4]} 47. Rh8+ {[%clk 0:03:10.2]}
47... Kg5 {[%clk 0:01:58.1]} 48. g7 {[%clk 0:03:07.4]} 48... Rf4+ {[%clk
0:01:55.4]} 49. Ke6 {[%clk 0:03:00.4]} 49... f2 {[%clk 0:01:54.3]} 50. g8=Q#
{[%clk 0:02:59.3]} 1-0

[Event "Live Chess"]
[Site "Chess.com"]
[Date "2023.05.21"]
[Round "-"]
[White "raminguy"]
[Black "VovaOvchar1990"]
[Result "1-0"]
[WhiteElo "1951"]
[BlackElo "1234"]
[TimeControl "300"]
[EndTime "20:27:21 PDT"]
[Termination "raminguy won by resignation"]

1. d4 {[%clk 0:04:59.1]} 1... d5 {[%clk 0:04:53.6]} 2. Nc3 {[%clk 0:04:58.4]}
2... Nf6 {[%clk 0:04:52]} 3. Bf4 {[%clk 0:04:57.9]} 3... Bf5 {[%clk 0:04:50.6]}
4. e3 {[%clk 0:04:56.7]} 4... a6 {[%clk 0:04:48.9]} 5. Nf3 {[%clk 0:04:55.8]}
5... Nc6 {[%clk 0:04:47.6]} 6. Ne5 {[%clk 0:04:49.9]} 6... Nxe5 {[%clk
0:04:45.6]} 7. dxe5 {[%clk 0:04:48.6]} 7... Ne4 {[%clk 0:04:42.5]} 8. Nxd5
{[%clk 0:04:41.7]} 8... e6 {[%clk 0:04:37.5]} 9. f3 {[%clk 0:03:32]} 9... Qxd5
{[%clk 0:04:07.4]} 10. Qxd5 {[%clk 0:03:28.6]} 10... exd5 {[%clk 0:04:04.4]} 11.
fxe4 {[%clk 0:03:27.5]} 11... Bxe4 {[%clk 0:04:01.8]} 12. O-O-O {[%clk 0:03:26]}
12... O-O-O {[%clk 0:03:58.2]} 13. Rg1 {[%clk 0:03:10.5]} 13... Re8 {[%clk
0:03:43.6]} 14. Bd3 {[%clk 0:03:07.7]} 14... Bxd3 {[%clk 0:03:38.7]} 15. Rxd3
{[%clk 0:03:06.3]} 15... c6 {[%clk 0:03:37]} 16. Rgd1 {[%clk 0:03:05.3]} 16...
f6 {[%clk 0:03:30.4]} 17. exf6 {[%clk 0:03:03.7]} 17... gxf6 {[%clk 0:03:28.8]}
18. Bg3 {[%clk 0:02:55]} 18... Bc5 {[%clk 0:03:25.5]} 19. Bf4 {[%clk 0:02:35.4]}
19... Rhg8 {[%clk 0:03:18.5]} 20. g3 {[%clk 0:02:33.7]} 20... Rg7 {[%clk
0:03:14.5]} 21. a3 {[%clk 0:02:29.3]} 21... Rge7 {[%clk 0:03:12.3]} 22. Rf1
{[%clk 0:02:23.8]} 22... Bxe3+ {[%clk 0:02:57.5]} 23. Bxe3 {[%clk 0:02:22.1]}
23... Rxe3 {[%clk 0:02:55.3]} 24. Rxf6 {[%clk 0:02:21.3]} 24... Re2 {[%clk
0:02:33.6]} 25. Rh6 {[%clk 0:02:18]} 25... Rh8 {[%clk 0:02:30.5]} 26. Rf3 {[%clk
0:02:12.8]} 26... Re7 {[%clk 0:02:21.7]} 27. g4 {[%clk 0:02:09.1]} 27... Kc7
{[%clk 0:02:11.9]} 28. g5 {[%clk 0:02:08]} 28... Re1+ {[%clk 0:02:07]} 29. Kd2
{[%clk 0:02:06.3]} 29... Rg1 {[%clk 0:02:04.7]} 30. Rg3 {[%clk 0:02:00.8]} 30...
Rxg3 {[%clk 0:02:00.1]} 31. hxg3 {[%clk 0:02:00.7]} 31... Kb8 {[%clk 0:01:56.3]}
32. g6 {[%clk 0:01:59]} 32... Rg8 {[%clk 0:01:46.1]} 33. gxh7 {[%clk 0:01:56.9]}
33... Rh8 {[%clk 0:01:41.9]} 34. g4 {[%clk 0:01:55.8]} 34... Kc8 {[%clk
0:01:41]} 35. g5 {[%clk 0:01:42.8]} 35... Kd8 {[%clk 0:01:39.6]} 36. g6 {[%clk
0:01:41.5]} 36... Ke7 {[%clk 0:01:30.2]} 37. g7 {[%clk 0:01:38]} 37... Rd8
{[%clk 0:01:28.9]} 38. h8=Q {[%clk 0:01:36.6]} 1-0

[Event "Live Chess"]
[Site "Chess.com"]
[Date "2023.05.21"]
[Round "-"]
[White "grillage"]
[Black "LutherSullivan"]
[Result "0-1"]
[WhiteElo "1808"]
[BlackElo "2203"]
[TimeControl "300"]
[EndTime "20:27:26 PDT"]
[Termination "LutherSullivan won by checkmate"]

1. d4 {[%clk 0:04:59.1]} 1... Nf6 {[%clk 0:04:58.7]} 2. Nc3 {[%clk 0:04:56.7]}
2... g6 {[%clk 0:04:58.3]} 3. Bf4 {[%clk 0:04:53.7]} 3... d5 {[%clk 0:04:56.9]}
4. e3 {[%clk 0:04:50.9]} 4... Bg7 {[%clk 0:04:52.2]} 5. h4 {[%clk 0:04:49.4]}
5... h5 {[%clk 0:04:43.2]} 6. Nf3 {[%clk 0:04:47.4]} 6... O-O {[%clk 0:04:35.8]}
7. Ne5 {[%clk 0:04:38.4]} 7... c6 {[%clk 0:04:22.7]} 8. Qd2 {[%clk 0:04:36.7]}
8... Nbd7 {[%clk 0:04:10.2]} 9. O-O-O {[%clk 0:04:32.8]} 9... a5 {[%clk
0:03:52.1]} 10. f3 {[%clk 0:04:29.4]} 10... a4 {[%clk 0:03:49.2]} 11. a3 {[%clk
0:04:23.6]} 11... Nxe5 {[%clk 0:03:38.1]} 12. Bxe5 {[%clk 0:04:22.3]} 12... b5
{[%clk 0:03:31.3]} 13. Na2 {[%clk 0:04:11.1]} 13... Qb6 {[%clk 0:03:16.2]} 14.
Be2 {[%clk 0:04:04.8]} 14... Bb7 {[%clk 0:03:03.7]} 15. g4 {[%clk 0:04:02.4]}
15... hxg4 {[%clk 0:02:56.6]} 16. fxg4 {[%clk 0:04:00.7]} 16... Ne4 {[%clk
0:02:54.8]} 17. Qe1 {[%clk 0:03:54]} 17... Bxe5 {[%clk 0:02:51]} 18. dxe5 {[%clk
0:03:51.9]} 18... Qxe3+ {[%clk 0:02:48.9]} 19. Kb1 {[%clk 0:03:48.9]} 19... Ng3
{[%clk 0:02:22.5]} 20. Rh2 {[%clk 0:03:41.6]} 20... Qxe5 {[%clk 0:02:19.9]} 21.
Rg2 {[%clk 0:03:22.9]} 21... Ne4 {[%clk 0:02:09.8]} 22. g5 {[%clk 0:03:15.7]}
22... c5 {[%clk 0:02:01.1]} 23. h5 {[%clk 0:03:14.1]} 23... d4 {[%clk
0:01:51.7]} 24. hxg6 {[%clk 0:03:07.4]} 24... fxg6 {[%clk 0:01:13.1]} 25. Qh4
{[%clk 0:03:04]} 25... Nd2+ {[%clk 0:00:57.5]} 26. Rxd2 {[%clk 0:02:48.6]} 26...
Bxg2 {[%clk 0:00:56.8]} 27. Bd3 {[%clk 0:02:39.1]} 27... Bd5 {[%clk 0:00:35.5]}
28. Bxg6 {[%clk 0:02:32]} 28... Bxa2+ {[%clk 0:00:34.1]} 29. Kc1 {[%clk
0:02:21.4]} 29... Rf1+ {[%clk 0:00:29.2]} 30. Rd1 {[%clk 0:02:20.4]} 30... Qe3#
{[%clk 0:00:27.5]} 0-1

[Event "Live Chess"]
[Site "Chess.com"]
[Date "2023.05.21"]
[Round "-"]
[White "smoggyrabbit"]
[Black "yarek"]
[Result "1-0"]
[WhiteElo "1756"]
[BlackElo "1885"]
[TimeControl "300"]
[EndTime "20:27:27 PDT"]
[Termination "smoggyrabbit won by resignation"]

1. d4 {[%clk 0:04:58.9]} 1... g6 {[%clk 0:04:58.6]} 2. Nf3 {[%clk 0:04:57.9]}
2... Bg7 {[%clk 0:04:55.4]} 3. e3 {[%clk 0:04:56.6]} 3... c6 {[%clk 0:04:54.1]}
4. Bd3 {[%clk 0:04:54.6]} 4... d5 {[%clk 0:04:53]} 5. O-O {[%clk 0:04:53.6]}
5... Bg4 {[%clk 0:04:48.5]} 6. Nbd2 {[%clk 0:04:49.7]} 6... e6 {[%clk
0:04:46.4]} 7. b3 {[%clk 0:04:48.4]} 7... Nf6 {[%clk 0:04:45.1]} 8. Bb2 {[%clk
0:04:47.3]} 8... O-O {[%clk 0:04:42.2]} 9. h3 {[%clk 0:04:46.5]} 9... Bxf3
{[%clk 0:04:40.4]} 10. Nxf3 {[%clk 0:04:45.3]} 10... Nbd7 {[%clk 0:04:40.2]} 11.
Ne5 {[%clk 0:04:43.9]} 11... Nxe5 {[%clk 0:04:32.1]} 12. dxe5 {[%clk 0:04:42.9]}
12... Nd7 {[%clk 0:04:31.5]} 13. f4 {[%clk 0:04:42]} 13... c5 {[%clk 0:04:26.4]}
14. c4 {[%clk 0:04:39.5]} 14... Nb6 {[%clk 0:04:17]} 15. cxd5 {[%clk 0:04:32.1]}
15... exd5 {[%clk 0:04:07.6]} 16. e4 {[%clk 0:04:25.1]} 16... d4 {[%clk
0:04:05.2]} 17. Rc1 {[%clk 0:04:13.5]} 17... Rc8 {[%clk 0:04:02]} 18. Ba3 {[%clk
0:04:08.9]} 18... Nd7 {[%clk 0:03:59.3]} 19. Bc4 {[%clk 0:04:01.4]} 19... b6
{[%clk 0:03:52.5]} 20. e6 {[%clk 0:03:54.8]} 20... fxe6 {[%clk 0:03:46.1]} 21.
Bxe6+ {[%clk 0:03:52.8]} 21... Kh8 {[%clk 0:03:46]} 22. f5 {[%clk 0:03:42]}
22... gxf5 {[%clk 0:03:38.2]} 23. Bxf5 {[%clk 0:03:35.8]} 23... Rc6 {[%clk
0:03:27.7]} 24. Bxd7 {[%clk 0:03:23.5]} 24... Qxd7 {[%clk 0:03:24.8]} 25. Rxf8+
{[%clk 0:03:21.9]} 25... Bxf8 {[%clk 0:03:24.7]} 26. Qf3 {[%clk 0:03:19.9]}
26... Qe7 {[%clk 0:03:00.3]} 27. Rf1 {[%clk 0:03:12.8]} 27... Bg7 {[%clk
0:02:52.7]} 28. e5 {[%clk 0:03:04]} 28... Re6 {[%clk 0:02:49.9]} 29. Qa8+ {[%clk
0:02:57]} 29... Qe8 {[%clk 0:02:41.6]} 30. Qxa7 {[%clk 0:02:53.5]} 30... Bxe5
{[%clk 0:02:35.1]} 31. Rf7 {[%clk 0:02:44.7]} 31... Rh6 {[%clk 0:02:23.5]} 32.
Re7 {[%clk 0:02:37.2]} 32... Qb8 {[%clk 0:01:23.3]} 33. Qxb8+ {[%clk 0:02:32.2]}
33... Bxb8 {[%clk 0:01:23.2]} 34. Re8+ {[%clk 0:02:31.4]} 34... Kg7 {[%clk
0:01:22.1]} 35. Rxb8 {[%clk 0:02:30.2]} 35... Rd6 {[%clk 0:01:20.5]} 36. Bb2
{[%clk 0:02:20.9]} 36... Kg6 {[%clk 0:01:15.5]} 37. Rg8+ {[%clk 0:02:02.2]}
37... Kf7 {[%clk 0:01:13.1]} 38. Rg3 {[%clk 0:01:52.3]} 38... d3 {[%clk
0:01:11.9]} 39. Rf3+ {[%clk 0:01:41.6]} 39... Ke6 {[%clk 0:01:07.6]} 40. Rf6+
{[%clk 0:01:40.4]} 40... Ke7 {[%clk 0:01:04.4]} 41. Rxd6 {[%clk 0:01:38.8]}
41... Kxd6 {[%clk 0:01:04.2]} 42. Kf2 {[%clk 0:01:37.8]} 42... b5 {[%clk
0:01:00.7]} 43. Ke3 {[%clk 0:01:30.7]} 43... c4 {[%clk 0:00:58.7]} 44. bxc4
{[%clk 0:01:29.6]} 44... bxc4 {[%clk 0:00:58.2]} 45. Bc3 {[%clk 0:01:26.6]}
45... Kc5 {[%clk 0:00:56.5]} 46. a4 {[%clk 0:01:23.6]} 46... h5 {[%clk 0:00:53]}
47. a5 {[%clk 0:01:22.4]} 47... Kb5 {[%clk 0:00:52.2]} 48. g4 {[%clk 0:01:15.2]}
48... hxg4 {[%clk 0:00:48.7]} 49. hxg4 {[%clk 0:01:15.1]} 1-0

[Event "Live Chess"]
[Site "Chess.com"]
[Date "2023.05.21"]
[Round "-"]
[White "ViktorTheCoolBoy"]
[Black "Conradical12"]
[Result "1-0"]
[WhiteElo "2501"]
[BlackElo "1633"]
[TimeControl "300"]
[EndTime "20:27:40 PDT"]
[Termination "ViktorTheCoolBoy won by checkmate"]

1. d4 {[%clk 0:04:58.4]} 1... h6 {[%clk 0:04:57.7]} 2. e4 {[%clk 0:04:56.7]}
2... h5 {[%clk 0:04:57.6]} 3. Nf3 {[%clk 0:04:55.6]} 3... h4 {[%clk 0:04:57.5]}
4. Bc4 {[%clk 0:04:53]} 4... h3 {[%clk 0:04:57.4]} 5. g3 {[%clk 0:04:51.6]} 5...
a5 {[%clk 0:04:54.5]} 6. Nc3 {[%clk 0:04:46.7]} 6... a4 {[%clk 0:04:54.4]} 7. a3
{[%clk 0:04:45.4]} 7... b6 {[%clk 0:04:52.4]} 8. e5 {[%clk 0:04:32.5]} 8... b5
{[%clk 0:04:52.3]} 9. Bxb5 {[%clk 0:04:30.7]} 9... c5 {[%clk 0:04:50.1]} 10.
dxc5 {[%clk 0:04:28.3]} 10... Na6 {[%clk 0:04:47.7]} 11. Be3 {[%clk 0:04:26]}
11... Nb4 {[%clk 0:04:47.6]} 12. axb4 {[%clk 0:04:24.4]} 12... Ra5 {[%clk
0:04:43.9]} 13. bxa5 {[%clk 0:04:23.1]} 13... Ba6 {[%clk 0:04:42.9]} 14. Bxa6
{[%clk 0:04:22]} 14... Qc8 {[%clk 0:04:42.2]} 15. Bxc8 {[%clk 0:04:19.5]} 15...
Rh4 {[%clk 0:04:41]} 16. Nxh4 {[%clk 0:04:17.2]} 16... g6 {[%clk 0:04:38.7]} 17.
a6 {[%clk 0:04:14.2]} 17... f5 {[%clk 0:04:36.5]} 18. a7 {[%clk 0:04:11.9]}
18... Kd8 {[%clk 0:04:34.2]} 19. a8=Q {[%clk 0:04:10.6]} 19... Bh6 {[%clk
0:04:27.6]} 20. Bb7+ {[%clk 0:04:09]} 20... Kc7 {[%clk 0:04:26.2]} 21. Nd5#
{[%clk 0:04:08.9]} 1-0

[Event "Live Chess"]
[Site "Chess.com"]
[Date "2023.05.21"]
[Round "-"]
[White "Tushinskiy"]
[Black "ramses-IIG"]
[Result "1-0"]
[WhiteElo "2214"]
[BlackElo "870"]
[TimeControl "300"]
[EndTime "20:27:51 PDT"]
[Termination "Tushinskiy won by resignation"]

1. d4 {[%clk 0:04:56.1]} 1... d5 {[%clk 0:04:59.9]} 2. c3 {[%clk 0:04:56]} 2...
e6 {[%clk 0:04:57.6]} 3. Nf3 {[%clk 0:04:55.9]} 3... Nf6 {[%clk 0:04:55.8]} 4.
Bf4 {[%clk 0:04:55.2]} 4... Nc6 {[%clk 0:04:51.1]} 5. Bg3 {[%clk 0:04:55.1]}
5... Bd7 {[%clk 0:04:45.9]} 6. Nbd2 {[%clk 0:04:54]} 6... b6 {[%clk 0:04:45.5]}
7. e3 {[%clk 0:04:53.3]} 7... Na5 {[%clk 0:04:44.2]} 8. Bd3 {[%clk 0:04:51.8]}
8... c6 {[%clk 0:04:43.4]} 9. b4 {[%clk 0:04:49.4]} 9... Nb7 {[%clk 0:04:41.4]}
10. Qe2 {[%clk 0:04:47.8]} 10... Bd6 {[%clk 0:04:36.5]} 11. Ne5 {[%clk
0:04:45.6]} 11... Bxe5 {[%clk 0:04:35.3]} 12. dxe5 {[%clk 0:04:45.5]} 12... Ng8
{[%clk 0:04:22.7]} 13. f4 {[%clk 0:04:43.3]} 13... Ne7 {[%clk 0:04:21.9]} 14.
O-O {[%clk 0:04:41.4]} 14... O-O {[%clk 0:04:20.8]} 15. Rad1 {[%clk 0:04:38.7]}
15... c5 {[%clk 0:04:15]} 16. e4 {[%clk 0:04:37.1]} 16... cxb4 {[%clk
0:04:13.8]} 17. cxb4 {[%clk 0:04:35.9]} 17... dxe4 {[%clk 0:04:12.9]} 18. Nxe4
{[%clk 0:04:35.6]} 18... Ba4 {[%clk 0:04:09.8]} 19. Rd2 {[%clk 0:04:34.2]} 19...
Nd5 {[%clk 0:03:57]} 20. h3 {[%clk 0:04:27.4]} 20... a5 {[%clk 0:03:45.4]} 21.
b5 {[%clk 0:04:25.1]} 21... f6 {[%clk 0:03:34.9]} 22. exf6 {[%clk 0:04:21.5]}
22... Nxf6 {[%clk 0:03:34.8]} 23. Ng5 {[%clk 0:04:20.2]} 23... Nc5 {[%clk
0:03:18.9]} 24. Bxh7+ {[%clk 0:04:18.4]} 1-0

[Event "Live Chess"]
[Site "Chess.com"]
[Date "2023.05.21"]
[Round "-"]
[White "LiamBellwood"]
[Black "garyjc"]
[Result "1-0"]
[WhiteElo "2007"]
[BlackElo "1049"]
[TimeControl "300"]
[EndTime "20:28:01 PDT"]
[Termination "LiamBellwood won by resignation"]

1. d4 {[%clk 0:04:59.1]} 1... Nf6 {[%clk 0:04:54.4]} 2. Nc3 {[%clk 0:04:59]}
2... g6 {[%clk 0:04:53.6]} 3. Bf4 {[%clk 0:04:58.6]} 3... Bg7 {[%clk 0:04:52.9]}
4. e4 {[%clk 0:04:58.2]} 4... O-O {[%clk 0:04:50.5]} 5. Qd2 {[%clk 0:04:57.5]}
5... d6 {[%clk 0:04:47.7]} 6. Bh6 {[%clk 0:04:55.4]} 6... Nc6 {[%clk 0:04:24.6]}
7. Bxg7 {[%clk 0:04:53.1]} 7... Kxg7 {[%clk 0:04:23.6]} 8. O-O-O {[%clk
0:04:51]} 8... Nb4 {[%clk 0:04:17.4]} 9. h4 {[%clk 0:04:38.3]} 9... a5 {[%clk
0:04:15.3]} 10. Nf3 {[%clk 0:04:33.3]} 10... a4 {[%clk 0:04:08.9]} 11. h5 {[%clk
0:04:30.8]} 11... b5 {[%clk 0:04:06.8]} 12. hxg6 {[%clk 0:04:28.5]} 12... fxg6
{[%clk 0:04:06.1]} 13. Qh6+ {[%clk 0:04:27.9]} 13... Kg8 {[%clk 0:04:03.7]} 14.
Ng5 {[%clk 0:04:23.2]} 14... Bg4 {[%clk 0:03:35.7]} 15. f3 {[%clk 0:04:18]}
15... Bh5 {[%clk 0:03:26.7]} 16. g4 {[%clk 0:04:16.9]} 1-0

[Event "Live Chess"]
[Site "Chess.com"]
[Date "2023.05.21"]
[Round "-"]
[White "Fazer180"]
[Black "RockTroll"]
[Result "1-0"]
[WhiteElo "1758"]
[BlackElo "2228"]
[TimeControl "300"]
[EndTime "20:28:31 PDT"]
[Termination "Fazer180 won - game abandoned"]

1. e4 {[%clk 0:04:58.2]} 1... d5 {[%clk 0:04:50.2]} 2. exd5 {[%clk 0:04:56.6]}
2... Qxd5 {[%clk 0:04:43.8]} 3. Nc3 {[%clk 0:04:56.5]} 3... Qd8 {[%clk
0:04:42.5]} 4. d4 {[%clk 0:04:55.9]} 4... Nf6 {[%clk 0:04:42]} 5. Nf3 {[%clk
0:04:52.2]} 5... Bg4 {[%clk 0:04:41.5]} 6. Be3 {[%clk 0:04:49]} 6... c6 {[%clk
0:04:39.6]} 7. h3 {[%clk 0:04:45.1]} 7... Bxf3 {[%clk 0:04:38.3]} 8. Qxf3 {[%clk
0:04:43.1]} 8... e6 {[%clk 0:04:38.2]} 9. O-O-O {[%clk 0:04:36.6]} 9... Bb4
{[%clk 0:04:37.5]} 10. Bg5 {[%clk 0:04:30.2]} 10... Bxc3 {[%clk 0:04:29.3]} 11.
Qxc3 {[%clk 0:04:11.4]} 11... Ne4 {[%clk 0:04:27.8]} 12. Bxd8 {[%clk 0:04:09.1]}
12... Nxc3 {[%clk 0:04:27]} 13. bxc3 {[%clk 0:04:04.2]} 13... Kxd8 {[%clk
0:04:25.4]} 14. Bd3 {[%clk 0:03:49.8]} 14... Nd7 {[%clk 0:04:22.3]} 15. Kd2
{[%clk 0:03:46]} 15... Ke7 {[%clk 0:03:56.2]} 16. Rb1 {[%clk 0:03:43.6]} 16...
b5 {[%clk 0:03:46.5]} 17. Be4 {[%clk 0:03:41.4]} 17... Rhc8 {[%clk 0:03:42.1]}
18. Rb3 {[%clk 0:03:31]} 18... Nb6 {[%clk 0:03:35.3]} 19. Ke2 {[%clk 0:03:04.2]}
19... a5 {[%clk 0:03:33.6]} 20. Bd3 {[%clk 0:02:58.2]} 20... a4 {[%clk
0:03:32.7]} 21. Rbb1 {[%clk 0:02:50.8]} 21... Kd6 {[%clk 0:03:27.9]} 22. Kf3
{[%clk 0:02:44.9]} 22... Nd5 {[%clk 0:03:25.1]} 23. c4 {[%clk 0:02:35.1]} 23...
Nc3 {[%clk 0:03:24.3]} 24. Rb2 {[%clk 0:02:24.7]} 24... a3 {[%clk 0:03:23.2]}
25. Rb3 {[%clk 0:02:20.3]} 25... Nxa2 {[%clk 0:03:11.8]} 26. cxb5 {[%clk
0:02:17.2]} 26... cxb5 {[%clk 0:03:06.1]} 27. Rxb5 {[%clk 0:02:13.1]} 1-0

[Event "Live Chess"]
[Site "Chess.com"]
[Date "2023.05.21"]
[Round "-"]
[White "KeithArkell"]
[Black "manthanit"]
[Result "1-0"]
[WhiteElo "2570"]
[BlackElo "1075"]
[TimeControl "300"]
[EndTime "20:28:47 PDT"]
[Termination "KeithArkell won by checkmate"]

1. d4 {[%clk 0:04:58.6]} 1... e6 {[%clk 0:04:58.8]} 2. Nf3 {[%clk 0:04:57.4]}
2... d5 {[%clk 0:04:58.4]} 3. Bg5 {[%clk 0:04:55.3]} 3... Be7 {[%clk 0:04:56.6]}
4. Bxe7 {[%clk 0:04:54.1]} 4... Nxe7 {[%clk 0:04:54.2]} 5. Nbd2 {[%clk 0:04:54]}
5... O-O {[%clk 0:04:52.9]} 6. e3 {[%clk 0:04:53.3]} 6... Ng6 {[%clk 0:04:51.8]}
7. Bd3 {[%clk 0:04:52.1]} 7... Nd7 {[%clk 0:04:46.6]} 8. h4 {[%clk 0:04:50.8]}
8... h5 {[%clk 0:04:39.2]} 9. Ng5 {[%clk 0:04:48.9]} 9... f6 {[%clk 0:04:32.9]}
10. Bxg6 {[%clk 0:04:46.5]} 10... fxg5 {[%clk 0:04:29.6]} 11. Qxh5 {[%clk
0:04:43.9]} 11... Nf6 {[%clk 0:04:24.7]} 12. Qxg5 {[%clk 0:04:42.7]} 12... Ne4
{[%clk 0:04:13.3]} 13. Qxd8 {[%clk 0:04:35.7]} 13... Rxd8 {[%clk 0:04:12.2]} 14.
Nxe4 {[%clk 0:04:32.3]} 14... dxe4 {[%clk 0:04:11.2]} 15. Bxe4 {[%clk
0:04:31.5]} 15... Rf8 {[%clk 0:04:10.7]} 16. f4 {[%clk 0:04:29.8]} 16... c6
{[%clk 0:04:10.2]} 17. h5 {[%clk 0:04:26]} 17... Bd7 {[%clk 0:04:08.5]} 18. h6
{[%clk 0:04:25.3]} 18... gxh6 {[%clk 0:04:06]} 19. Rxh6 {[%clk 0:04:24.1]} 19...
Kg7 {[%clk 0:04:05.1]} 20. Rh7+ {[%clk 0:04:22.5]} 20... Kf6 {[%clk 0:03:57.9]}
21. g4 {[%clk 0:04:21.6]} 21... Be8 {[%clk 0:03:55.4]} 22. g5# {[%clk
0:04:20.6]} 1-0

[Event "Live Chess"]
[Site "Chess.com"]
[Date "2023.05.21"]
[Round "-"]
[White "Tushinskiy"]
[Black "Conradical12"]
[Result "1-0"]
[WhiteElo "2215"]
[BlackElo "1632"]
[TimeControl "300"]
[EndTime "20:28:58 PDT"]
[Termination "Tushinskiy won by checkmate"]

1. d4 {[%clk 0:04:57.8]} 1... h6 {[%clk 0:04:59.5]} 2. c3 {[%clk 0:04:57.7]}
2... h5 {[%clk 0:04:59.4]} 3. Nf3 {[%clk 0:04:56.6]} 3... h4 {[%clk 0:04:59.3]}
4. h3 {[%clk 0:04:55.4]} 4... a6 {[%clk 0:04:57.4]} 5. Bf4 {[%clk 0:04:54.1]}
5... a5 {[%clk 0:04:57.3]} 6. Nbd2 {[%clk 0:04:48.9]} 6... a4 {[%clk 0:04:57.2]}
7. a3 {[%clk 0:04:47.7]} 7... e5 {[%clk 0:04:54.3]} 8. Bxe5 {[%clk 0:04:45.7]}
8... Qf6 {[%clk 0:04:52.4]} 9. Bxf6 {[%clk 0:04:44.6]} 9... Be7 {[%clk
0:04:50.2]} 10. Bxg7 {[%clk 0:04:42.8]} 10... Nc6 {[%clk 0:04:45.5]} 11. Bxh8
{[%clk 0:04:41.7]} 11... Bf6 {[%clk 0:04:44.2]} 12. Bxf6 {[%clk 0:04:40.4]}
12... Nge7 {[%clk 0:04:43.3]} 13. Bxh4 {[%clk 0:04:38.8]} 13... f6 {[%clk
0:04:41.1]} 14. Bxf6 {[%clk 0:04:36.4]} 14... Nd8 {[%clk 0:04:40]} 15. e4 {[%clk
0:04:34.8]} 15... Ndc6 {[%clk 0:04:38.3]} 16. Bd3 {[%clk 0:04:32.7]} 16... Nd8
{[%clk 0:04:38.2]} 17. Ne5 {[%clk 0:04:31.9]} 17... Ndc6 {[%clk 0:04:38.1]} 18.
Qh5+ {[%clk 0:04:30.5]} 18... Kf8 {[%clk 0:04:36.3]} 19. Qf7# {[%clk 0:04:28.7]}
1-0